bitfinex-derivatives/quotes_BTCF0:USTF0_20251202
["timestamp","ask_amount","ask_price","bid_price","bid_amount"]
[1764684961046,0.535,88441.0,88440.0,0.66883]
[1764684961237,0.00016919,88454.0,88453.0,0.33358]
[1764684961444,0.00016919,88454.0,88453.0,0.66883]
[1764684961943,0.00028253,88486.0,88476.0,0.6801332]
[1764684962139,0.0113028,88480.0,88476.0,1.0409332]
[1764684962647,0.0113024,88483.0,88476.0,1.0409332]
[1764684962861,0.0113027,88481.0,88476.0,1.0409332]
[1764684963552,0.0113029,88479.0,88476.0,1.02963]
[1764684963848,0.0113029,88479.0,88472.0,0.09268]
[1764684964052,1.0638236,88473.0,88472.0,0.09268]
[1764684964644,1.0638236,88473.0,88472.0,0.086201]
[1764684965452,0.7030241,88469.0,88468.0,0.00016955]
[1764684965752,0.7030241,88469.0,88451.0,0.34051]
[1764684965753,0.0113063,88452.0,88451.0,0.34051]
[1764684966752,0.535,88457.0,88447.0,0.3608]
[1764684966753,0.0113068,88448.0,88447.0,0.3608]
[1764684966943,0.00016955,88456.0,88455.0,0.68615]
[1764684967350,0.00016955,88456.0,88455.0,1.04695]
[1764684967743,0.0113047,88465.0,88463.0,0.0113048]
[1764684967950,0.0113047,88465.0,88464.0,0.68615]
[1764684968637,0.3533247,88465.0,88464.0,0.34051]
[1764684968843,0.0113057,88457.0,88456.0,0.4445157]
[1764684969042,0.0113057,88457.0,88456.0,0.4628387]
[1764684969446,0.0113057,88457.0,88456.0,0.77885]
[1764684969642,0.0113053,88460.0,88459.0,0.34051]
[1764684969953,0.0113053,88460.0,88459.0,0.68615]
[1764684970452,0.75146678,88470.0,88456.0,0.0927]
[1764684970453,0.7030257,88457.0,88456.0,0.0927]
[1764684970642,1.2378657,88457.0,88456.0,0.0927]
[1764684971554,0.703027,88447.0,88446.0,0.3608]
[1764684971754,1.237867,88447.0,88446.0,0.3608]
[1764684972165,0.3608,88472.0,88454.0,0.68615]
[1764684972351,0.0113059,88456.0,88455.0,0.68615]
[1764684972549,0.5460659,88456.0,88455.0,0.68615]
[1764684974157,0.53476,88456.0,88455.0,0.68615]
[1764684974463,0.2139022,88484.0,88455.0,0.68615]
[1764684974464,0.53464,88469.0,88468.0,0.6974542]
[1764684975163,0.53464,88469.0,88468.0,0.68615]
[1764684976147,0.53464,88469.0,88468.0,0.6974543]
[1764684976950,1.5113032,88477.0,88476.0,0.6974532]
[1764684977148,1.5,88477.0,88476.0,0.6974532]
[1764684977348,0.53444,88484.0,88483.0,0.6974524]
[1764684977565,0.3608,88494.0,88485.0,0.68615]
[1764684977751,0.0113013,88492.0,88485.0,0.68615]
[1764684977953,1.50028253,88486.0,88485.0,0.68615]
[1764684979355,0.00028253,88486.0,88485.0,0.68615]
[1764684979762,0.89512,88505.0,88485.0,0.68615]
[1764684979763,0.89512,88505.0,88504.0,0.68615]
[1764684979953,0.21650678,88520.0,88511.0,0.68615]
[1764684979954,0.0112988,88512.0,88511.0,0.68615]
[1764684980150,1.5,88512.0,88511.0,0.68615]
[1764684981856,0.5346424,88526.0,88525.0,0.68615]
[1764684982061,0.0002824,88526.0,88525.0,0.68615]
[1764684982461,1.5002824,88526.0,88525.0,0.68615]
[1764684982657,1.5002824,88526.0,88517.0,0.00016944]
[1764684982658,0.3533179,88518.0,88517.0,4e-08]
[1764684982864,0.0113019,88487.0,88486.0,0.68615]
[1764684983170,0.0113026,88481.0,88480.0,0.89851]
[1764684983354,0.0113016,88489.0,88480.0,0.89851]
[1764684983560,0.0113016,88489.0,88488.0,0.68615]
[1764684983865,0.7030216,88489.0,88480.0,0.21252944]
[1764684984065,0.3533226,88481.0,88480.0,0.00016944]
[1764684984458,0.7030226,88481.0,88480.0,0.00016944]
[1764684986266,0.3608,88482.0,88480.0,0.34067944]
[1764684986461,0.3608,88482.0,88481.0,0.34051]
[1764684986764,0.3608,88482.0,88481.0,0.68615]
[1764684990164,0.3608,88482.0,88480.0,0.00016944]
[1764684990165,0.7030226,88481.0,88480.0,0.00016944]
[1764684991567,0.3608,88482.0,88480.0,0.00016944]
[1764684991875,0.3608,88482.0,88481.0,0.68615]
[1764684993574,0.89512,88492.0,88491.0,0.67825]
[1764684994062,0.3608,88492.0,88481.0,0.0113026]
[1764684994264,0.6990526,88481.0,88480.0,0.00016944]
[1764684995463,1.2332526,88481.0,88480.0,0.00016944]
[1764684996164,0.3608,88482.0,88480.0,0.67841944]
[1764684996366,0.3608,88482.0,88481.0,0.67825]
[1764684998765,0.3748,88482.0,88481.0,0.67825]
[1764684999162,0.014,88482.0,88481.0,0.67825]
[1764684999358,0.014,88482.0,88480.0,0.00016944]
[1764684999359,0.0113015,88490.0,88489.0,0.32703]
[1764684999583,0.3608,88500.0,88491.0,0.88534]
[1764684999761,0.0002824,88526.0,88525.0,0.67825]
[1764685000063,1.5002824,88526.0,88525.0,1.03905]
[1764685000262,0.27780058,88550.0,88525.0,1.03905]
[1764685000263,0.26650678,88550.0,88525.0,0.3608]
[1764685000467,0.0112939,88549.0,88546.0,0.3608]
[1764685000666,0.26650678,88550.0,88549.0,0.0112939]
[1764685000866,0.26650678,88550.0,88548.0,0.3608]
[1764685001179,0.27780058,88550.0,88548.0,0.3608]
[1764685001380,1.5,88549.0,88548.0,0.3608]
[1764685001559,1.5,88549.0,88548.0,1.03905]
[1764685001976,1.5,88549.0,88548.0,0.3608]
[1764685003171,1.514,88549.0,88548.0,0.3608]
[1764685004161,0.6990451,88540.0,88539.0,0.00016944]
[1764685004366,1.2333251,88540.0,88539.0,0.00016944]
[1764685004561,1.2333251,88540.0,88502.0,0.0394254]
[1764685004562,0.68775,88515.0,88514.0,0.3608]
[1764685004761,0.15631,88536.0,88501.0,0.3608]
[1764685004762,0.75078678,88518.0,88501.0,0.3608]
[1764685004977,0.0112991,88509.0,88508.0,0.67825]
[1764685005676,0.6990511,88493.0,88464.0,0.3608]
[1764685005977,0.7048711,88493.0,88484.0,0.00016944]
[1764685006978,0.3608,88493.0,88484.0,0.00016944]
[1764685007172,0.3608,88506.0,88505.0,0.32703]
[1764685007475,0.3608,88506.0,88505.0,0.67825]
[1764685007682,0.3720994,88506.0,88505.0,0.67825]
[1764685008361,0.3608,88506.0,88505.0,0.67825]
[1764685008575,0.3608,88513.0,88512.0,0.67825]
[1764685008770,0.00016944,88517.0,88516.0,0.6895481]
[1764685009272,0.3608,88526.0,88525.0,0.689547]
[1764685009471,0.0112971,88524.0,88505.0,0.8608]
[1764685009671,0.0112977,88520.0,88516.0,0.011298]
[1764685009870,0.0112977,88520.0,88519.0,0.67825]
[1764685010072,0.3608,88526.0,88525.0,0.67825]
[1764685010863,0.53604,88541.0,88531.0,0.0112961]
[1764685011171,0.3608,88544.0,88531.0,0.0112961]
[1764685011172,0.0112957,88536.0,88535.0,0.67825]
[1764685011362,0.3608,88544.0,88543.0,0.67825]
[1764685011560,0.0112947,88543.0,88537.0,0.0112954]
[1764685011768,0.0112947,88543.0,88531.0,0.3608]
[1764685011968,0.3608,88544.0,88543.0,0.6895447]
[1764685012271,0.3608,88544.0,88543.0,0.67825]
[1764685013178,0.3720946,88544.0,88543.0,0.67825]
[1764685013578,1.5,88549.0,88548.0,0.67825]
[1764685013776,0.05,88550.0,88549.0,0.6895439]
[1764685014082,0.05,88550.0,88549.0,0.67825]
[1764685014274,0.05,88550.0,88549.0,0.6895439]
[1764685014774,0.0612938,88550.0,88549.0,0.67825]
[1764685015280,0.68775,88549.0,88548.0,0.5]
[1764685015671,1.08775,88549.0,88548.0,0.47927875]
[1764685015873,0.0112965,88529.0,88527.0,0.00016944]
[1764685016083,0.3608,88529.0,88528.0,0.67825]
[1764685016381,0.3720964,88530.0,88529.0,0.67825]
[1764685016576,0.33277,88528.0,88527.0,0.00016944]
[1764685017483,0.3720964,88530.0,88529.0,0.67825]
[1764685017678,0.3608,88530.0,88529.0,0.67825]
[1764685018180,0.3608,88538.0,88527.0,0.00016944]
[1764685018383,0.0112966,88528.0,88527.0,0.00016944]
[1764685018578,0.3440666,88528.0,88527.0,0.00016944]
[1764685018780,0.6990466,88528.0,88527.0,0.00016944]
[1764685018986,0.9135866,88528.0,88527.0,0.00016944]
[1764685019682,0.6990466,88528.0,88527.0,0.00016944]
[1764685019882,0.7130466,88528.0,88527.0,0.00016944]
[1764685020178,0.70175,88528.0,88527.0,0.00016944]
[1764685020388,0.3608,88529.0,88527.0,0.32719944]
[1764685020686,0.014,88528.0,88527.0,0.32719944]
[1764685021070,0.3608,88529.0,88527.0,0.33849614]
[1764685021277,0.3608,88529.0,88528.0,0.67825]
[1764685021476,0.6990466,88528.0,88527.0,0.00016944]
[1764685022577,0.3559376,88520.0,88519.0,0.09263]
[1764685022773,0.7167376,88520.0,88519.0,0.09263]
[1764685022974,0.7167376,88520.0,88506.0,0.3608]
[1764685022975,0.0112984,88515.0,88513.0,0.0112984]
[1764685023584,0.3608,88520.0,88517.0,0.0112978]
[1764685023775,0.67602,88518.0,88517.0,0.0112978]
[1764685024182,0.34464,88518.0,88517.0,0.0112978]
[1764685024372,0.0112985,88514.0,88513.0,0.3654582]
[1764685024779,0.014,88515.0,88514.0,0.71011]
[1764685026282,0.00016944,88523.0,88522.0,0.87524]
[1764685026483,0.00016944,88523.0,88522.0,0.8865374]
[1764685026876,0.0112953,88539.0,88528.0,0.7214066]
[1764685027078,0.3608,88540.0,88528.0,0.7214066]
[1764685027079,0.33495006,88529.0,88528.0,0.7214066]
[1764685027488,0.3608,88540.0,88539.0,0.7214052]
[1764685029181,0.4108,88550.0,88539.0,0.0112952]
[1764685029383,0.4108,88550.0,88549.0,0.71011]
[1764685029588,0.4108,88550.0,88549.0,0.7214039]
[1764685029788,0.4108,88550.0,88549.0,0.71011]
[1764685030793,0.4248,88550.0,88549.0,0.71111]
[1764685031297,0.3608,88568.0,88555.0,0.7214032]
[1764685031789,0.3720916,88568.0,88565.0,0.7214019]
[1764685032008,0.3720916,88568.0,88565.0,0.71011]
[1764685032180,1.50383549,88566.0,88565.0,0.71011]
[1764685032491,0.67602,88558.0,88557.0,0.00016944]
[1764685032685,1.03682,88558.0,88557.0,0.00016944]
[1764685032991,0.3608,88558.0,88557.0,0.71027944]
[1764685033186,1.50383549,88566.0,88565.0,0.71011]
[1764685033382,1.50383549,88566.0,88565.0,0.7214019]
[1764685033580,1.50383549,88566.0,88565.0,0.71011]
[1764685034588,1.51783549,88566.0,88565.0,0.71111]
[1764685034895,1.51783549,88566.0,88565.0,0.001]
[1764685036986,1.87863549,88566.0,88565.0,0.001]
[1764685040290,0.0112928,88558.0,88557.0,0.00016944]
[1764685040593,1.03682,88558.0,88557.0,0.71027944]
[1764685040989,1.03682,88558.0,88557.0,0.00016944]
[1764685041391,0.70544,88558.0,88557.0,0.71027944]
[1764685041588,0.3608,88558.0,88557.0,0.71127944]
[1764685041789,0.3738,88558.0,88557.0,0.71127944]
[1764685043797,0.3738,88558.0,88557.0,0.00116944]
[1764685043798,1.04982,88558.0,88557.0,0.00116944]
[1764685046103,0.67602,88538.0,88537.0,0.71011]
[1764685046289,1.03682,88538.0,88537.0,0.71011]
[1764685046895,0.0112962,88533.0,88532.0,0.011296]
[1764685047093,0.3608,88538.0,88537.0,0.71011]
[1764685047298,0.3708,88538.0,88537.0,0.71111]
[1764685047495,0.00016944,88541.0,88540.0,0.71011]
[1764685047803,0.3608,88557.0,88556.0,0.923823]
[1764685049491,0.00383549,88566.0,88565.0,0.7214019]
[1764685049691,0.3608,88574.0,88573.0,0.7214009]
[1764685050093,0.3608,88574.0,88573.0,0.71011]
[1764685050293,0.3608,88582.0,88581.0,0.3672398]
[1764685050591,0.3608,88582.0,88574.0,0.0112907]
[1764685050592,0.0112884,88593.0,88592.0,0.35416]
[1764685050800,1.8720884,88593.0,88592.0,0.71011]
[1764685051100,1.8608,88593.0,88592.0,0.71011]
[1764685051400,0.0112895,88584.0,88573.0,0.50116934]
[1764685051592,0.0112899,88581.0,88580.0,0.71011]
[1764685051794,0.0112907,88574.0,88573.0,1.21027934]
[1764685051986,0.0112907,88574.0,88573.0,0.71027934]
[1764685052186,0.3608,88585.0,88576.0,0.71011]
[1764685052187,0.0112904,88577.0,88576.0,0.71011]
[1764685052387,0.3608,88585.0,88584.0,0.71011]
[1764685052994,0.0112901,88579.0,88578.0,0.3556102]
[1764685053197,0.3720894,88585.0,88584.0,0.34432]
[1764685053501,0.3720894,88585.0,88584.0,0.67346]
[1764685053996,0.3730894,88585.0,88584.0,0.67446]
[1764685054191,1.0725594,88585.0,88584.0,0.001]
[1764685054901,1.06127,88585.0,88584.0,0.001]
[1764685055295,0.69947,88574.0,88573.0,0.00016934]
[1764685055495,0.3608,88574.0,88573.0,0.67362934]
[1764685055700,0.3618,88585.0,88575.0,0.0112906]
[1764685055897,0.3618,88585.0,88584.0,0.7022495]
[1764685056699,0.3608,88585.0,88584.0,0.7022495]
[1764685056906,0.0112885,88592.0,88591.0,0.7022486]
[1764685057106,0.0112885,88592.0,88591.0,0.69096]
[1764685057301,0.3596,88589.0,88585.0,0.0112893]
[1764685057497,0.3608,88587.0,88585.0,0.0112893]
[1764685057799,0.3608,88587.0,88584.0,0.001]
[1764685057800,1.07063,88587.0,88586.0,0.34094]
[1764685058009,0.3608,88587.0,88586.0,0.69096]
[1764685058508,0.70983,88586.0,88585.0,0.0112893]
[1764685058891,0.3608,88587.0,88586.0,0.34094]
[1764685059102,0.3606,88592.0,88591.0,0.0112886]
[1764685059304,0.001,88592.0,88591.0,0.7022486]
[1764685059601,1.5,88593.0,88592.0,0.69096]
[1764685059798,0.00742815,88595.0,88594.0,0.69096]
[1764685061196,0.72025815,88595.0,88594.0,0.69196]
[1764685061600,0.91565815,88595.0,88594.0,0.001]
[1764685063196,0.91565815,88595.0,88573.0,0.53932219]
[1764685063197,0.70983,88580.0,88579.0,0.01129]
[1764685063403,0.7211206,88577.0,88576.0,0.0112904]
[1764685063804,0.3608,88582.0,88581.0,0.0112898]
[1764685063996,0.7204,88582.0,88581.0,0.7022498]
[1764685064306,0.3608,88582.0,88581.0,0.7022498]
[1764685064698,0.01042815,88595.0,88594.0,0.7022482]
[1764685065600,0.72025815,88595.0,88594.0,0.7022482]
[1764685065800,0.91265815,88595.0,88594.0,0.0112882]
[1764685066107,0.00742815,88595.0,88594.0,0.7022482]
[1764685066505,0.72125815,88595.0,88594.0,0.0122882]
[1764685066705,0.91665815,88595.0,88594.0,0.0122882]
[1764685067909,0.91665815,88595.0,88594.0,0.001]
[1764685068809,0.01142815,88595.0,88594.0,0.69196]
[1764685069009,0.72125815,88595.0,88594.0,0.001]
[1764685070307,0.73254625,88595.0,88594.0,0.001]
[1764685071416,0.73254625,88595.0,88594.0,0.0122882]
[1764685071601,0.73254625,88595.0,88594.0,0.001]
[1764685072011,0.72125815,88595.0,88594.0,0.3532282]
[1764685072509,0.72125815,88595.0,88594.0,0.34194]
[1764685072710,0.72125815,88595.0,88594.0,0.69196]
[1764685072907,0.72125815,88595.0,88594.0,0.001]
[1764685073907,0.72125815,88595.0,88594.0,0.7032482]
[1764685074112,0.73254625,88595.0,88594.0,0.7032482]
[1764685074509,0.73254625,88595.0,88594.0,0.001]
[1764685077707,0.72125815,88595.0,88594.0,0.0122882]
[1764685077920,0.72125815,88595.0,88594.0,0.001]
[1764685078616,0.72125815,88595.0,88594.0,0.0122882]
[1764685078919,0.72125815,88595.0,88594.0,0.69196]
[1764685079117,0.01142815,88595.0,88594.0,0.69196]
[1764685079419,0.72125815,88595.0,88594.0,0.34194]
[1764685079623,0.72125815,88595.0,88594.0,0.69196]
[1764685079624,0.01142815,88595.0,88594.0,0.69196]
[1764685080011,0.37102815,88595.0,88594.0,0.69196]
[1764685080212,0.72125815,88595.0,88594.0,0.001]
[1764685080407,0.72125815,88595.0,88594.0,0.69196]
[1764685081307,0.0112848,88621.0,88605.0,0.8829068]
[1764685081517,0.53312,88626.0,88605.0,1.2437068]
[1764685081713,0.71011215,88606.0,88605.0,0.01764533]
[1764685081902,0.70983,88602.0,88600.0,0.02964374]
[1764685082103,0.7211177,88598.0,88597.0,0.00016934]
[1764685082303,0.7211181,88595.0,88594.0,0.501]
[1764685082511,0.70358,88577.0,88576.0,0.02964374]
[1764685082710,0.6963929,88557.0,88548.0,0.4002254]
[1764685082912,0.6851,88557.0,88556.0,0.37854361]
[1764685083217,0.6851,88557.0,88556.0,0.36088994]
[1764685083519,1.21818,88564.0,88563.0,0.0112921]
[1764685083717,0.6851,88560.0,88559.0,0.0112926]
[1764685084418,0.6963925,88560.0,88556.0,0.36088994]
[1764685084620,0.6963929,88557.0,88556.0,0.36088994]
[1764685085320,0.6851,88557.0,88556.0,0.36088994]
[1764685086222,0.0112925,88561.0,88560.0,0.35519]
[1764685086517,1.229472,88564.0,88556.0,0.36088994]
[1764685086825,1.229472,88564.0,88559.0,0.0112925]
[1764685086826,0.6851,88560.0,88559.0,0.0112925]
[1764685087520,0.6851,88557.0,88556.0,0.37218294]
[1764685087721,1.21826,88557.0,88556.0,8.994e-05]
[1764685087925,0.6963939,88549.0,88548.0,0.09276934]
[1764685088122,1.5903539,88549.0,88548.0,0.09276934]
[1764685088319,0.6963967,88527.0,88524.0,0.011297]
[1764685088916,0.69649233,88527.0,88520.0,0.0134775]
[1764685089112,0.6963975,88521.0,88520.0,0.00218]
[1764685089315,0.6963994,88506.0,88504.0,0.00149893]
[1764685089632,0.53325563,88506.0,88505.0,0.69262133]
[1764685089928,1.21835563,88506.0,88505.0,0.00716133]
[1764685091224,1.21839563,88506.0,88505.0,0.00716133]
[1764685091616,0.68519563,88506.0,88505.0,0.00716133]
[1764685092017,9.563e-05,88506.0,88505.0,0.69262133]
[1764685092424,0.69119563,88506.0,88505.0,0.00716133]
[1764685092723,0.69119563,88506.0,88499.0,0.0113003]
[1764685092724,0.6851,88505.0,88483.0,0.3608]
[1764685092913,0.6851,88487.0,88483.0,0.3608]
[1764685093114,0.69649471,88487.0,88483.0,0.3608]
[1764685093519,0.69649471,88487.0,88480.0,0.3608]
[1764685093911,0.68519291,88487.0,88481.0,0.0113026]
[1764685094212,0.68519291,88487.0,88485.0,0.0113021]
[1764685094534,9.291e-05,88487.0,88486.0,0.68674253]
[1764685094726,0.68519291,88487.0,88480.0,0.3608]
[1764685094927,0.68519291,88487.0,88478.0,0.00016944]
[1764685094928,1.0459,88481.0,88478.0,0.00016944]
[1764685095118,0.6851,88479.0,88478.0,0.00016944]
[1764685095320,8.424e-05,88480.0,88479.0,0.68546]
[1764685095514,8.424e-05,88480.0,88479.0,0.6967629]
[1764685095720,8.424e-05,88480.0,88479.0,0.68546]
[1764685097114,0.00408424,88480.0,88479.0,0.68546]
[1764685097323,0.6851,88479.0,88478.0,0.00016944]
[1764685098024,0.6964038,88472.0,88471.0,0.09268]
[1764685098224,0.6964038,88472.0,88438.0,0.19572]
[1764685098225,0.0113066,88450.0,88440.0,0.0113077]
[1764685098430,9.563e-05,88449.0,88438.0,0.19572]
[1764685098629,9.563e-05,88449.0,88448.0,0.68546]
[1764685098818,9.563e-05,88449.0,88448.0,0.6967668]
[1764685099429,0.6851,88448.0,88440.0,0.00016954]
[1764685099616,0.6851,88447.0,88440.0,0.00016954]
[1764685099932,0.6964077,88441.0,88440.0,0.00016954]
[1764685100118,0.3608,88447.0,88446.0,0.35519]
[1764685100323,0.36089563,88447.0,88446.0,0.68546]
[1764685100521,9.563e-05,88447.0,88446.0,0.68546]
[1764685100729,0.34121563,88447.0,88443.0,0.0113074]
[1764685101030,0.34121563,88447.0,88445.0,0.0113072]
[1764685101233,9.563e-05,88447.0,88446.0,0.68546]
[1764685101831,0.00209563,88447.0,88446.0,0.68546]
[1764685102131,0.6851,88446.0,88443.0,0.0113074]
[1764685102323,0.3608,88446.0,88443.0,0.0113074]
[1764685102529,0.3608,88446.0,88445.0,0.68546]
[1764685103435,0.00209563,88447.0,88446.0,0.6967671]
[1764685103936,0.00016954,88457.0,88456.0,0.6967658]
[1764685104822,0.1059,88485.0,88456.0,0.6967658]
[1764685104823,0.3608,88476.0,88475.0,0.3664934]
[1764685105234,0.3608,88476.0,88475.0,0.6967634]
[1764685106020,0.00016954,88484.0,88483.0,0.0113024]
[1764685106620,0.00016954,88484.0,88483.0,0.3664924]
[1764685106833,0.3608,88503.0,88502.0,0.0112999]
[1764685107431,0.3608,88503.0,88502.0,0.6967599]
[1764685107627,0.53368,88510.0,88509.0,0.696759]
[1764685107829,0.3608,88511.0,88501.0,0.00016954]
[1764685107830,0.6851,88502.0,88501.0,0.00016954]
[1764685108021,1.0459,88502.0,88501.0,0.00016954]
[1764685108222,1.0459,88502.0,88501.0,0.68562954]
[1764685108223,0.3608,88502.0,88501.0,0.68562954]
[1764685109124,1.0519,88502.0,88501.0,0.00016954]
[1764685109536,0.19895,88500.0,88474.0,0.3608]
[1764685109731,0.0113051,88462.0,88459.0,0.3721054]
[1764685110033,0.3721035,88475.0,88466.0,0.0113045]
[1764685110339,0.0113037,88473.0,88467.0,0.0113043]
[1764685110728,0.0113037,88473.0,88469.0,0.011304]
[1764685110927,0.0113037,88473.0,88471.0,0.0113038]
[1764685111129,0.3608,88475.0,88474.0,0.3664935]
[1764685111324,0.3608,88475.0,88474.0,0.6967635]
[1764685111529,0.00016954,88479.0,88478.0,0.696763]
[1764685113338,0.3608,88492.0,88491.0,0.6892113]
[1764685114736,0.3608,88492.0,88483.0,0.00016954]
[1764685114928,0.3668,88492.0,88483.0,0.00016954]
[1764685115130,0.3668,88492.0,88484.0,0.0113022]
[1764685115131,0.0113013,88491.0,88484.0,0.0113022]
[1764685115440,0.3584,88484.0,88483.0,0.00016954]
[1764685115745,1.07739,88484.0,88483.0,0.00016954]
[1764685117237,1.07739,88484.0,88483.0,0.01147194]
[1764685117637,0.3608,88484.0,88483.0,0.70866194]
[1764685117837,1.07407,88484.0,88483.0,0.00016954]
[1764685118237,0.3608,88484.0,88466.0,0.3608]
[1764685118432,0.0113044,88467.0,88466.0,0.3608]
[1764685118641,0.0113056,88458.0,88455.0,0.19572]
[1764685118947,0.3608,88456.0,88455.0,0.19572]
[1764685119145,0.0113062,88453.0,88449.0,0.0113066]
[1764685119447,0.3608,88456.0,88443.0,0.00268515]
[1764685119741,0.3608,88456.0,88454.0,0.0113059]
[1764685119943,0.3608,88456.0,88455.0,0.69719]
[1764685120744,0.00016954,88460.0,88459.0,0.7084954]
[1764685120936,0.00016954,88460.0,88459.0,0.72616863]
[1764685121848,0.00416954,88460.0,88459.0,0.72616863]
[1764685122057,0.0113023,88484.0,88472.0,0.7084938]
[1764685122350,0.0113023,88484.0,88472.0,0.72616703]
[1764685122546,0.3608,88489.0,88488.0,0.35769]
[1764685122744,0.3608,88489.0,88488.0,0.69719]
[1764685123138,0.35208,88484.0,88483.0,0.0113023]
[1764685123338,0.35208,88481.0,88480.0,0.00016954]
[1764685123633,1.07107,88481.0,88480.0,0.00016954]
[1764685123841,1.07107,88481.0,88472.0,0.5]
[1764685123842,0.7265736,88473.0,88472.0,0.5]
[1764685124043,1.0883736,88473.0,88472.0,4.38e-06]
[1764685124444,1.0833736,88473.0,88472.0,4.38e-06]
[1764685124647,1.4833736,88473.0,88472.0,4.38e-06]
[1764685124841,0.0746647,88465.0,88464.0,0.00016954]
[1764685125042,0.9696247,88465.0,88464.0,0.00016954]
[1764685126044,1.3696247,88465.0,88464.0,0.00016954]
[1764685127045,1.3706247,88465.0,88464.0,0.00016954]
[1764685127641,1.3746247,88465.0,88464.0,0.00016954]
[1764685127844,0.9734247,88465.0,88464.0,0.00016954]
[1764685128151,0.9744247,88465.0,88464.0,0.00016954]
[1764685128848,0.42916,88465.0,88464.0,0.00016954]
[1764685129050,0.96308,88465.0,88464.0,0.00016954]
[1764685129746,0.3658,88465.0,88464.0,0.69735954]
[1764685130140,0.3648,88465.0,88464.0,0.69735954]
[1764685130652,0.001,88465.0,88464.0,0.69735954]
[1764685130948,0.06536,88465.0,88464.0,0.00016954]
[1764685131449,0.06436,88465.0,88464.0,0.00016954]
[1764685131839,0.06536,88465.0,88464.0,0.00016954]
[1764685132440,0.42616,88465.0,88464.0,0.00016954]
[1764685132848,0.3628,88465.0,88464.0,0.69735954]
[1764685133239,0.3608,88465.0,88464.0,0.69735954]
[1764685133445,0.39448,88465.0,88464.0,0.00016954]
[1764685133749,0.42616,88465.0,88464.0,0.00016954]
[1764685133941,0.78596,88465.0,88464.0,0.00016954]
[1764685134448,1.3188,88465.0,88464.0,0.00016954]
[1764685134645,1.3208,88465.0,88464.0,0.00016954]
[1764685134848,0.06336,88452.0,88451.0,0.00268491]
[1764685135048,0.4354663,88452.0,88451.0,0.00268491]
[1764685138147,0.074667,88447.0,88446.0,0.00028266]
[1764685139049,0.06244,88424.0,88423.0,9.23e-05]
[1764685139251,0.95712,88424.0,88423.0,9.23e-05]
[1764685139647,0.53388,88424.0,88423.0,0.6972823]
[1764685141045,0.36096964,88432.0,88431.0,0.35769]
[1764685141250,0.3608,88443.0,88431.0,0.69719]
[1764685141445,0.3608,88443.0,88430.0,0.3608]
[1764685141446,0.03122,88440.0,88438.0,0.19994]
[1764685141652,0.03122,88439.0,88438.0,0.5689381]
[1764685141948,0.3608,88445.0,88444.0,0.7084973]
[1764685142951,0.53408964,88453.0,88452.0,0.9214963]
[1764685143151,0.59652964,88453.0,88452.0,0.2146163]
[1764685143852,0.53408964,88453.0,88452.0,0.5702663]
[1764685144053,0.53408964,88453.0,88452.0,0.9194563]
[1764685144054,0.00016964,88453.0,88452.0,0.9194563]
[1764685144763,0.00216964,88453.0,88452.0,0.9194563]
[1764685145150,0.00116964,88453.0,88452.0,0.9194563]
[1764685145746,0.00016964,88453.0,88452.0,0.9194563]
[1764685146857,0.53408964,88453.0,88438.0,0.19994]
[1764685147163,0.3608,88445.0,88442.0,0.0113075]
[1764685147556,0.3608,88445.0,88439.0,0.0113079]
[1764685147760,0.011308,88439.0,88438.0,0.19994]
[1764685148358,0.3608,88445.0,88441.0,0.0113077]
[1764685148359,0.03122,88442.0,88441.0,0.0113077]
[1764685148563,0.0113077,88441.0,88438.0,0.211248]
[1764685149365,0.3618,88445.0,88440.0,0.3669578]
[1764685149566,0.3618,88445.0,88440.0,0.3669577]
[1764685149857,0.3618,88445.0,88442.0,0.0113075]
[1764685150057,0.3618,88445.0,88444.0,0.70484]
[1764685150454,0.3608,88445.0,88444.0,0.70484]
[1764685150859,0.00016964,88453.0,88452.0,0.90815]
[1764685151061,0.00016964,88453.0,88452.0,0.9194563]
[1764685152665,0.00116964,88453.0,88452.0,0.9194563]
[1764685153365,0.00116964,88453.0,88452.0,1.2802563]
[1764685153663,0.53392,88457.0,88456.0,0.7161458]
[1764685154850,0.0113054,88459.0,88458.0,0.70484]
[1764685155567,0.0436954,88459.0,88458.0,0.70484]
[1764685156467,0.03239,88459.0,88458.0,0.70484]
[1764685157173,0.03339,88459.0,88458.0,0.70484]
[1764685157464,0.001,88459.0,88458.0,0.70484]
[1764685158165,0.00016964,88465.0,88464.0,0.9194548]
[1764685158966,0.06494964,88465.0,88464.0,0.90815]
[1764685159162,0.42574964,88465.0,88464.0,0.90815]
[1764685159870,0.40171221,88465.0,88464.0,0.90815]
[1764685160665,0.40171221,88465.0,88464.0,0.55896]
[1764685160861,0.40171221,88465.0,88464.0,0.20331]
[1764685161169,0.0113048,88464.0,88456.0,0.00016964]
[1764685161365,0.0283657,88457.0,88456.0,0.00016964]
[1764685161569,0.3891657,88457.0,88456.0,0.00016964]
[1764685162473,0.019838,88439.0,88438.0,0.90478]
[1764685162673,0.34775,88457.0,88456.0,0.70484]
[1764685162857,0.002,88465.0,88464.0,0.90815]
[1764685163061,0.002,88465.0,88464.0,1.26895]
[1764685163464,0.16149011,88490.0,88485.0,0.70484]
[1764685163676,0.41644,88491.0,88485.0,0.70484]
[1764685164058,0.00016954,88494.0,88485.0,0.70484]
[1764685164970,0.01147054,88494.0,88485.0,0.70484]
[1764685165170,0.00528253,88486.0,88485.0,0.70484]
[1764685166767,0.00628253,88486.0,88485.0,0.70484]
[1764685166972,0.00016954,88494.0,88493.0,0.35565]
[1764685167274,0.00016954,88494.0,88477.0,0.00016954]
[1764685167275,0.67229,88478.0,88477.0,0.00016954]
[1764685167585,0.683593,88478.0,88477.0,0.00016954]
[1764685167961,0.011303,88478.0,88477.0,0.70500954]
[1764685168161,0.53376,88480.0,88479.0,0.70484]
[1764685168369,0.67229,88478.0,88477.0,0.00016954]
[1764685168574,0.67529,88478.0,88477.0,0.00016954]
[1764685169062,0.67229,88476.0,88475.0,0.09268]
[1764685169880,1.20601,88476.0,88475.0,0.09268]
[1764685170266,0.53372,88476.0,88468.0,0.0113042]
[1764685170466,0.0113041,88470.0,88469.0,0.35565]
[1764685170771,0.3638,88478.0,88477.0,0.7161431]
[1764685170973,0.3608,88478.0,88477.0,0.7161431]
[1764685172166,0.0113022,88485.0,88484.0,0.35565]